[Event "OeISM Blitz U10 B"]
[Site "austriaU10b"]
[Date "2020.12.11"]
[Round "1"]
[White "Lukas-2010"]
[Black "Daniel195"]
[Result "1-0"]
[WhiteElo "1856"]
[BlackElo "1615"]
[Annotator "NA RC"]
[PlyCount "95"]
[EventDate "2020.12.11"]
[EventType "blitz"]
[TimeControl "180+2"]

1. e4 {[%emt 0:00:10]} e5 {[%emt 0:00:02]} 2. Nf3 {[%emt 0:00:01]} Nf6 {[%emt 0:00:02]} 3. d4 {[%emt 0:00:01]} Nxe4 {[%emt 0:00:05]} 4. dxe5 {[%emt 0:00:02]} Be7 {[%emt 0:00:04]} 5. Bd3 {[%emt 0:00:03]} Nc5 {[%emt 0:00:02]} 6. O-O {[%emt 0:00:01]} Nxd3 {[%emt 0:00:02]} 7. Qxd3 {[%emt 0:00:00]} O-O {[%emt 0:00:04]} 8. Nc3 {[%emt 0:00:01]} Nc6 {[%emt 0:00:02]} 9. Nd5 {[%emt 0:00:02]} d6 {[%emt 0:00:02]} 10. Nxe7+ {[%emt 0:00:07]} Qxe7 {[%emt 0:00:05]} 11. Bg5 {[%emt 0:00:02]} Qd7 {[%emt 0:00:12]} 12. exd6 {[%emt 0:00:01]} Qxd6 {[%emt 0:00:02]} 13. Qxd6 {[%emt 0:00:02]} cxd6 {[%emt 0:00:02]} 14. Rad1 {[%emt 0:00:00]} h6 {[%emt 0:00:06]} 15. Bf4 {[%emt 0:00:02]} d5 {[%emt 0:00:04]} 16. Rxd5 {[%emt 0:00:03]} Be6 {[%emt 0:00:04]} 17. Rdd1 {[%emt 0:00:01]} Rad8 {[%emt 0:00:03]} 18. a3 {[%emt 0:00:05]} Bg4 {[%emt 0:00:07]} 19. c3 {[%emt 0:00:11]} Bxf3 {[%emt 0:00:04]} 20. gxf3 {[%emt 0:00:01]} g5 {[%emt 0:00:08]} 21. Bg3 {[%emt 0:00:02]} f5 {[%emt 0:00:03]} 22. Bc7 {[%emt 0:00:05]} Rc8 {[%emt 0:00:03]} 23. Bd6 {[%emt 0:00:10]} Rfd8 {[%emt 0:00:06]} 24. f4 {[%emt 0:00:02]} g4 {[%emt 0:00:05]} 25. Be5 {[%emt 0:00:11]} Nxe5 {[%emt 0:00:09]} 26. fxe5 {[%emt 0:00:00]} Kf7 {[%emt 0:00:05]} 27. f4 {[%emt 0:00:39]} gxf3 {[%emt 0:00:05]} 28. Rd4 {[%emt 0:00:09]} Rxd4 {[%emt 0:00:05]} 29. cxd4 {[%emt 0:00:00]} Rc2 {[%emt 0:00:02]} 30. Rxf3 {[%emt 0:00:01]} Rxb2 {[%emt 0:00:02]} 31. Rxf5+ {[%emt 0:00:01]} Ke6 {[%emt 0:00:02]} 32. Rf6+ {[%emt 0:00:01]} Kd5 {[%emt 0:00:01]} 33. Rd6+ {[%emt 0:00:02]} Ke4 {[%emt 0:00:03]} 34. h4 {[%emt 0:00:09]} Kf3 {[%emt 0:00:04]} 35. Rf6+ {[%emt 0:00:05]} Kg3 {[%emt 0:00:02]} 36. Rg6+ {[%emt 0:00:02]} Kf3 {[%emt 0:00:03]} 37. e6 {[%emt 0:00:04]} Rb1+ {[%emt 0:00:02]} 38. Kh2 {[%emt 0:00:01]} Rb2+ {[%emt 0:00:06]} 39. Kh3 {[%emt 0:00:01]} Rb1 {[%emt 0:00:08]} 40. Rf6+ {[%emt 0:00:01]} Ke3 {[%emt 0:00:02]} 41. e7 {[%emt 0:00:02]} Rh1+ {[%emt 0:00:07]} 42. Kg2 {[%emt 0:00:01]} Rxh4 {[%emt 0:00:04]} 43. e8=Q+ {[%emt 0:00:02]} Re4 {[%emt 0:00:04]} 44. Rf3+ {[%emt 0:00:03]} Kd2 {[%emt 0:00:03]} 45. Qxe4 {[%emt 0:00:02]} Kd1 {[%emt 0:00:03]} 46. Rf2 {[%emt 0:00:02]} Kc1 {[%emt 0:00:02]} 47. Qe2 {[%emt 0:00:00]} Kb1 {[%emt 0:00:02]} 48. Qe1# {[%emt 0:00:00] Mate Mate} 1-0